bitfinex/quotes_ETHUSD_20250804
["timestamp","ask_amount","ask_price","bid_price","bid_amount"]
[1754275725019,4.322,3561.6,3561.0,4.08039177]
[1754275725326,6.752,3562.2,3561.6,2.80772686]
[1754275725327,4.322,3562.2,3561.6,2.80772686]
[1754275725726,4.322,3562.2,3561.6,2.97580412]
[1754275726037,0.11099443,3563.4,3561.7,0.55]
[1754275726192,0.11099443,3563.4,3562.1,0.55]
[1754275726392,0.11099443,3563.4,3562.8,2.80677126]
[1754275726628,0.11099443,3563.4,3562.8,3.02181604]
[1754275726992,0.11099443,3563.4,3563.2,0.14]
[1754275727313,4.43999443,3563.4,3562.7,3.27652053]
[1754275727494,4.92909387,3563.4,3563.0,0.14]
[1754275727690,0.9338,3563.3,3563.0,0.14]
[1754275727907,4.331,3563.2,3562.8,0.14]
[1754275728127,0.55157944,3563.1,3562.8,0.6097]
[1754275728314,0.55157944,3563.1,3562.2,0.4697]
[1754275728624,0.55157944,3563.1,3561.8,0.55]
[1754275728625,0.9338,3563.0,3561.9,0.4697]
[1754275728824,0.14,3562.7,3562.2,0.14]
[1754275729005,4.922,3562.7,3562.2,0.14]
[1754275729323,0.54048,3562.6,3562.2,0.14]
[1754275729530,0.99148,3562.6,3562.2,0.14]
[1754275730435,0.451,3562.5,3561.4,2.80786595]
[1754275730615,0.594528,3562.4,3562.1,0.14]
[1754275731014,1.045528,3562.4,3562.1,0.14]
[1754275731545,1.045528,3562.4,3561.7,0.4697]
[1754275731546,3.0,3563.2,3561.7,0.4697]
[1754275731722,4.331,3563.1,3562.5,2.80695753]
[1754275732041,4.331,3563.1,3562.7,0.14]
[1754275732235,0.4471,3563.0,3562.7,0.14]
[1754275732423,4.344,3562.9,3562.8,0.4697]
[1754275732939,5.2778,3562.9,3562.5,0.14]
[1754275733237,0.99278,3562.8,3562.5,0.14]
[1754275733609,0.54178,3562.8,3562.5,0.14]
[1754275734324,4.344,3562.7,3562.5,0.14]
[1754275735437,4.344,3562.7,3562.6,0.4697]
[1754275736556,4.344,3562.7,3562.6,3.72553875]
[1754275736841,4.344,3562.7,3562.6,0.9186]
[1754275737022,4.344,3562.7,3562.5,0.14]
[1754275737343,4.344,3562.7,3562.5,0.6097]
[1754275739414,4.7784,3562.7,3562.5,0.6097]
[1754275739815,4.7794,3562.7,3562.5,0.6097]
[1754275740010,0.4354,3562.7,3562.5,0.6097]
[1754275740330,4.338,3562.7,3562.5,0.6097]
[1754275740684,4.338,3562.7,3562.5,0.14]
[1754275740853,0.9551,3562.6,3561.9,0.4511]
[1754275741157,0.9551,3562.6,3562.3,0.14]
[1754275741645,4.338,3562.7,3561.3,3.3579289]
[1754275741646,0.9551,3562.5,3562.0,0.14]
[1754275741846,0.68331,3562.5,3562.0,0.14]
[1754275742144,0.9551,3562.4,3562.0,0.14]
[1754275742362,0.14,3562.3,3561.8,2.94756324]
[1754275742565,4.336,3562.2,3561.8,0.4511]
[1754275742852,4.336,3562.2,3562.0,0.14]
[1754275743205,4.336,3562.2,3562.0,0.5911]
[1754275743938,4.336,3562.2,3562.0,0.14]
[1754275744339,4.823931,3562.2,3562.0,0.14]
[1754275744558,0.456,3562.1,3562.0,0.14]
[1754275744734,4.823931,3562.2,3562.0,0.14]
[1754275744936,4.823931,3562.2,3561.6,0.4531]
[1754275745138,4.963931,3562.2,3561.7,0.14]
[1754275745384,0.4963931,3562.1,3561.7,0.14]
[1754275745546,0.4963931,3562.1,3561.7,0.5911]
[1754275746043,0.4963931,3562.1,3561.8,0.4511]
[1754275746427,4.336,3562.2,3561.9,0.4615]
[1754275746629,4.336,3562.2,3562.0,0.9126]
[1754275746829,4.336,3562.2,3562.1,0.4511]
[1754275747265,4.336,3562.2,3561.9,0.14]
[1754275747651,4.336,3562.2,3561.9,0.5911]
[1754275747848,4.336,3562.2,3561.9,2.94747523]
[1754275748068,0.14,3562.5,3562.0,0.4511]
[1754275748069,4.338,3562.1,3562.0,0.4511]
[1754275748855,5.2278,3562.1,3561.9,0.14]
[1754275749053,5.7269,3562.1,3561.7,0.14]
[1754275749238,5.2278,3562.1,3561.7,0.14]
[1754275750363,5.2278,3562.1,3561.7,2.94762333]
[1754275750568,0.14,3562.2,3561.8,0.4511]
[1754275750869,0.14,3562.2,3561.7,0.14]
[1754275750870,4.338,3562.0,3561.9,0.4511]
[1754275751370,4.338,3562.0,3561.9,0.5911]
[1754275751530,4.338,3562.0,3561.9,3.86009038]
[1754275751727,4.338,3562.0,3561.9,0.5911]
[1754275752167,4.338,3562.0,3561.9,3.39859038]
[1754275752395,0.14,3562.5,3562.0,2.80741156]
[1754275752593,4.337,3562.1,3562.0,5.80741156]
[1754275752903,4.336,3562.3,3562.2,2.94724668]
[1754275753047,4.336,3562.3,3562.2,3.25834668]
[1754275753244,0.141,3562.7,3562.2,0.5911]
[1754275753460,4.336,3562.6,3562.5,2.80700836]
[1754275753662,0.001,3562.7,3562.6,2.94693875]
[1754275753870,4.339,3562.7,3562.6,0.4511]
[1754275754347,4.339,3562.7,3562.5,0.14]
[1754275754958,4.339,3562.7,3562.5,2.94701104]
[1754275755494,4.339,3562.7,3562.5,2.94700956]
[1754275755846,4.336,3562.6,3562.5,2.94699689]
[1754275756650,4.336,3562.6,3562.5,3.39809689]
[1754275757391,0.001,3562.7,3562.6,2.80693875]
[1754275757689,4.341,3562.7,3562.6,2.80693875]
[1754275759070,4.341,3562.7,3562.5,2.94700103]
[1754275759270,4.339,3562.6,3562.5,2.94700103]
[1754275759492,4.339,3562.6,3562.5,3.39810103]
[1754275759698,0.001,3562.7,3562.6,2.80693875]
[1754275759993,4.338,3562.7,3562.6,2.80693875]
[1754275760195,0.001,3562.7,3562.6,3.25803875]
[1754275760504,0.001,3562.7,3562.6,3.71953875]
[1754275760708,4.338,3562.7,3562.6,3.71953875]
[1754275761466,0.001,3562.7,3562.6,3.71953875]
[1754275761903,0.001,3562.7,3562.5,0.14]
[1754275761904,4.336,3562.7,3562.5,0.14]
[1754275762209,1.3887,3562.6,3561.9,3.25851312]
[1754275762406,1.3887,3562.6,3562.2,0.14]
[1754275762968,0.9551,3562.5,3562.2,0.14]
[1754275763172,0.57247,3562.4,3561.6,2.8097076]
[1754275763364,4.475,3562.3,3561.8,0.14]
[1754275763565,0.9551,3562.2,3561.7,0.14]
[1754275763770,1.555357,3562.1,3561.7,0.14]
[1754275764072,1.056257,3562.1,3561.7,0.14]
[1754275764971,0.600257,3562.1,3561.7,0.14]
[1754275765170,0.600257,3562.1,3561.6,0.002]
[1754275765171,0.456,3562.0,3561.6,0.142]
[1754275765366,4.336,3561.9,3561.6,0.142]
[1754275766471,4.9251357,3561.9,3561.6,0.142]
[1754275766773,1.0951,3561.8,3561.6,0.002]
[1754275767176,0.9551,3561.7,3561.6,0.002]
[1754275768188,43.9551,3561.7,3561.6,0.002]
[1754275768386,3.9551,3561.7,3561.6,0.002]
[1754275768601,15.40712357,3561.7,3561.6,0.002]
[1754275768913,38.2147716,3561.7,3561.6,0.002]
[1754275769077,38.35905098,3561.7,3561.6,0.002]
[1754275769277,35.54712357,3561.7,3561.6,0.002]
[1754275770223,39.88312357,3561.7,3561.6,0.002]
[1754275770815,9.88312357,3561.7,3561.6,0.002]
[1754275771305,5.54712357,3561.7,3561.6,0.002]
[1754275771511,9.33312357,3561.7,3561.6,0.002]
[1754275772507,9.33212357,3561.7,3561.6,0.002]
[1754275774405,4.99712357,3561.7,3561.6,0.002]
[1754275774607,4.04202357,3561.7,3561.6,0.002]
[1754275774821,8.37602357,3561.7,3561.6,0.002]
[1754275775515,8.37502357,3561.7,3561.6,0.002]
[1754275775700,4.04202357,3561.7,3561.6,0.002]
[1754275775900,8.37502357,3561.7,3561.6,0.002]
[1754275776431,4.472,3561.7,3561.6,0.431]
[1754275776581,4.472,3561.7,3561.6,0.9236]
[1754275776917,4.472,3561.7,3561.6,0.4946]
[1754275777122,4.472,3561.7,3561.6,0.9236]
[1754275777294,6.748,3561.9,3561.6,0.9236]
[1754275777498,4.332,3561.8,3561.6,3.73132686]
[1754275777810,0.9308,3562.7,3561.9,2.80748982]
[1754275777811,0.001,3562.7,3561.9,2.80748982]
[1754275778014,0.14,3562.3,3562.0,0.9216]
[1754275778185,0.14,3562.3,3562.1,0.9216]
[1754275778186,4.332,3562.2,3562.1,0.9216]
[1754275778722,4.332,3562.2,3562.1,0.4926]
[1754275779915,4.332,3562.2,3561.6,0.002]
[1754275779916,4.7792,3562.2,3561.6,0.002]
[1754275780118,5.2108,3562.2,3561.6,0.002]
[1754275780304,0.14,3562.0,3561.6,0.002]
[1754275780484,4.331,3561.9,3561.7,0.9216]
[1754275780691,4.331,3561.9,3561.8,0.9216]
[1754275782216,4.331,3561.9,3561.6,0.002]
[1754275782410,4.331,3561.9,3561.6,0.4946]
[1754275782582,4.331,3561.9,3561.7,0.4926]
[1754275783220,4.70624042,3561.9,3561.6,0.002]
[1754275783521,0.14,3561.7,3561.6,0.002]
[1754275786601,4.327,3561.7,3561.6,0.9236]
[1754275787222,4.327,3561.7,3561.6,0.002]
[1754275787418,4.327,3561.7,3561.6,0.4946]
[1754275787622,4.326,3561.7,3561.6,3.73132686]
[1754275788022,4.326,3561.7,3561.6,0.9236]
[1754275788623,4.326,3561.7,3561.6,3.73132686]
[1754275788798,0.14,3562.2,3561.7,2.80764089]
[1754275788999,4.325,3562.1,3561.8,0.9216]
[1754275789345,0.4992,3562.7,3561.9,0.9216]
[1754275789346,0.14,3562.3,3561.9,0.9216]
[1754275789550,0.14,3562.3,3562.0,0.4926]
[1754275789829,4.325,3562.2,3562.0,0.4926]
[1754275790230,0.14,3562.3,3562.0,0.4926]
[1754275790416,4.325,3562.1,3562.0,0.4926]
[1754275791630,0.14,3562.3,3562.0,0.4926]
[1754275791839,4.323,3562.2,3562.1,0.429]
[1754275792001,0.14,3562.6,3562.3,2.80716542]
[1754275792321,0.14,3562.6,3562.1,0.9216]
[1754275792322,4.323,3562.5,3562.4,3.72869633]
[1754275792932,0.14,3562.6,3562.4,0.9216]
[1754275793135,4.325,3562.5,3562.1,2.80733275]
[1754275793305,0.14,3562.6,3562.4,2.80709292]
[1754275793634,4.325,3562.5,3562.4,2.80709292]
[1754275793803,4.325,3562.5,3562.3,0.14]
[1754275794508,4.325,3562.5,3562.3,0.6326]
[1754275794709,4.325,3562.5,3562.4,0.4926]
[1754275794936,4.325,3562.5,3562.3,0.20931625]
[1754275795137,4.325,3562.5,3562.1,0.4926]
[1754275795336,4.325,3562.5,3561.9,0.429]
[1754275795337,1.0698,3562.4,3561.7,2.80758397]
[1754275795542,1.0698,3562.4,3561.9,2.80747202]
[1754275795735,0.5716,3562.4,3561.8,2.94754513]
[1754275796038,0.14,3562.4,3561.9,3.3000736]
[1754275796339,0.14,3562.4,3562.0,2.80738473]
[1754275796504,0.14,3562.4,3562.1,0.4926]
[1754275796505,4.323,3562.3,3562.1,0.4926]
[1754275796703,4.323,3562.3,3561.9,0.4926]
[1754275797132,4.323,3562.3,3561.8,0.3516148]
[1754275797312,0.14,3562.4,3561.9,0.4926]
[1754275797313,4.322,3562.2,3561.9,0.4926]
[1754275797732,4.322,3562.2,3561.8,0.3516148]
[1754275797934,0.4316,3562.1,3561.8,0.3516148]
[1754275798514,4.322,3562.2,3561.8,0.2116148]
[1754275798722,4.462,3562.2,3561.9,0.4926]
[1754275800329,4.462,3562.2,3561.7,0.14]
[1754275800529,4.462,3562.2,3561.8,0.21609414]
[1754275800779,4.9002,3562.2,3561.7,0.6169]
[1754275801847,5.44004,3562.2,3561.7,0.14]
[1754275802033,5.44004,3562.2,3561.6,0.002]
[1754275802034,0.14,3561.9,3561.6,0.002]
[1754275802344,4.318,3561.8,3561.6,0.002]
[1754275803524,4.318,3561.8,3561.7,0.4769]
[1754275803934,0.14,3561.9,3561.8,2.8075692]
[1754275804135,4.318,3561.9,3561.8,2.8075692]
[1754275804333,4.318,3561.9,3561.8,3.7183692]
[1754275804723,0.001,3562.2,3561.9,2.80747862]
[1754275805036,4.318,3562.1,3561.9,0.9108]
[1754275805235,4.318,3562.1,3562.0,0.4769]
[1754275805408,4.318,3562.1,3562.0,0.9108]
[1754275805846,0.001,3562.2,3562.0,0.9108]
[1754275806154,0.001,3562.2,3562.1,0.9108]
[1754275806322,4.318,3562.2,3562.1,0.9108]
[1754275807151,4.318,3562.2,3561.9,0.14]
[1754275807539,4.318,3562.2,3561.7,3.65142699]
[1754275807727,4.318,3562.2,3561.9,0.4769]
[1754275807923,4.318,3562.2,3561.8,0.6169]
[1754275808747,4.318,3562.2,3561.8,0.14]
[1754275809050,4.318,3562.2,3561.9,0.9108]
[1754275809353,4.318,3562.2,3562.0,0.4769]
[1754275812144,4.318,3562.2,3561.8,0.6169]
[1754275812345,4.318,3562.2,3561.8,0.14]
[1754275812659,4.7562,3562.2,3561.8,0.14]
[1754275812858,4.318,3562.2,3561.8,0.6169]
[1754275813070,4.318,3562.2,3561.8,0.14]
[1754275813240,0.9,3562.1,3561.6,0.002]
[1754275813435,0.14,3561.7,3561.6,0.002]
[1754275813638,4.453,3561.7,3561.6,0.002]
[1754275814057,4.8912,3561.7,3561.6,0.002]
[1754275814226,5.8883,3561.7,3561.6,0.002]
[1754275816344,5.4265,3561.7,3561.6,0.002]
[1754275818343,5.8883,3561.7,3561.6,0.002]
[1754275819236,12.24594803,3561.7,3561.6,0.002]
[1754275819841,9.4383,3561.7,3561.6,0.002]
[1754275826094,8.5383,3561.7,3561.6,0.002]
[1754275826296,8.9765,3561.7,3561.6,0.002]
[1754275826582,9.4383,3561.7,3561.6,0.002]
[1754275828182,4.9883,3561.7,3561.6,0.002]
[1754275828364,0.14,3561.7,3561.6,0.002]
[1754275828692,4.448,3561.7,3561.6,0.002]
[1754275829747,7.448,3561.7,3561.6,0.002]
[1754275830359,7.447,3561.7,3561.6,0.4833]
[1754275830548,3.14,3561.7,3561.6,0.4833]
[1754275830748,0.001,3562.2,3561.6,0.4833]
[1754275830749,0.001,3562.2,3561.6,0.9231]
[1754275831175,0.001,3562.2,3561.7,3.86874803]
[1754275831176,4.307,3562.1,3561.7,3.86874803]
[1754275831492,4.307,3562.1,3561.8,3.72865989]
[1754275831775,4.307,3562.1,3561.9,0.9211]
[1754275831981,0.141,3562.2,3562.0,0.9211]
[1754275832183,0.001,3562.2,3562.1,0.9211]
[1754275832379,0.001,3562.2,3561.9,2.80746304]
[1754275832691,4.311,3562.2,3561.9,2.80746304]
[1754275833051,4.311,3562.2,3562.0,0.9211]
[1754275833252,4.311,3562.2,3561.7,3.0886373]
[1754275833452,4.311,3562.2,3561.8,3.72865915]
[1754275833654,4.311,3562.2,3561.7,0.281]
[1754275833655,4.311,3562.2,3561.9,0.9211]
[1754275833983,4.311,3562.2,3562.0,0.9211]
[1754275834284,4.311,3562.2,3562.1,0.9211]
[1754275834483,4.311,3562.2,3562.1,0.4398]
[1754275834681,4.311,3562.2,3562.1,0.9211]
[1754275838390,4.307,3562.2,3562.1,0.9211]
[1754275840191,4.307,3562.2,3562.1,0.4813]
[1754275841497,4.303,3562.2,3562.1,0.4813]
[1754275842089,4.303,3562.2,3562.1,0.9211]
[1754275842890,4.303,3562.2,3562.1,0.4813]
[1754275843092,0.001,3562.2,3562.1,0.4813]
[1754275843399,4.302,3562.2,3562.1,0.4813]
[1754275843694,4.302,3562.2,3562.1,0.9211]
[1754275844485,0.001,3562.2,3562.1,0.4813]
[1754275844686,4.302,3562.2,3562.1,0.4813]
[1754275845284,5.6633,3562.2,3561.6,0.002]
[1754275845488,0.14,3561.8,3561.6,0.002]
[1754275845836,4.301,3561.7,3561.6,0.002]
[1754275846733,4.301,3561.7,3561.6,0.4833]
[1754275846934,4.301,3561.7,3561.6,0.9231]
[1754275847101,0.14,3561.9,3561.6,0.9231]
[1754275847306,4.303,3561.8,3561.7,0.9211]
[1754275847503,4.303,3561.8,3561.7,0.4813]
[1754275847926,4.303,3561.8,3561.6,0.002]
[1754275848110,0.4443,3561.7,3561.6,0.002]
[1754275848735,0.5843,3561.7,3561.6,0.002]
[1754275849237,0.14,3561.7,3561.6,0.002]
[1754275850143,0.14,3561.7,3561.6,0.4833]
[1754275851325,0.14,3561.7,3561.6,0.9231]
[1754275851530,4.441,3561.7,3561.6,0.9231]
[1754275852509,4.441,3561.7,3561.6,0.4833]
[1754275852923,4.441,3561.7,3561.6,0.002]
[1754275853747,4.441,3561.7,3561.6,0.4833]
[1754275855328,4.441,3561.7,3561.6,0.002]
[1754275856533,4.441,3561.7,3561.6,0.4833]
[1754275857242,4.441,3561.7,3561.6,0.002]
[1754275857760,4.441,3561.7,3561.2,0.002]
[1754275857761,8.8022,3561.7,3561.2,0.002]
[1754275857930,0.9171,3561.6,3561.2,0.002]
[1754275858122,0.14,3561.3,3561.2,0.002]
[1754275858323,4.442,3561.3,3561.2,0.002]
[1754275858628,5.3591,3561.3,3561.2,0.002]
[1754275858955,4.97791,3561.3,3561.2,0.002]
[1754275859254,0.14,3561.3,3561.2,0.4793]
[1754275859423,4.442,3561.3,3561.2,0.4793]
[1754275859857,4.442,3561.3,3561.2,0.002]
[1754275860220,4.8895,3561.3,3561.2,0.002]
[1754275860539,5.42816,3561.3,3561.2,0.002]
[1754275860740,4.98066,3561.3,3561.2,0.002]
[1754275860974,0.14,3561.3,3561.2,0.002]
[1754275861180,4.307,3561.3,3561.2,0.9272]
[1754275862589,0.14,3561.6,3561.2,0.9272]
[1754275862792,0.9446,3561.9,3561.2,0.4793]
[1754275862960,0.14,3561.4,3561.2,0.002]
[1754275863292,4.307,3561.3,3561.2,0.002]
[1754275863695,5.2516,3561.3,3561.2,0.002]
[1754275863987,5.79076,3561.3,3561.2,0.002]
[1754275865203,5.29366,3561.3,3561.2,0.002]
[1754275865973,4.98616,3561.3,3561.2,0.002]
[1754275867269,0.67916,3561.3,3561.2,0.002]
[1754275867471,4.448,3561.3,3561.2,0.9272]
[1754275868573,0.14,3561.3,3561.2,0.9272]
[1754275868779,4.448,3561.3,3561.2,0.9272]
[1754275869209,4.448,3561.3,3561.2,0.4793]
[1754275869507,4.448,3561.3,3561.2,0.002]
[1754275869710,4.74514819,3561.3,3561.2,0.002]
[1754275870395,5.68974819,3561.3,3561.2,0.002]
[1754275870719,5.19264819,3561.3,3561.2,0.002]
[1754275870887,4.74514819,3561.3,3561.2,0.002]
[1754275871214,4.74514819,3561.3,3561.2,0.9272]
[1754275871522,4.307,3561.3,3561.2,0.9272]
[1754275872529,0.14,3561.4,3561.2,0.9272]
[1754275872724,4.308,3561.3,3561.2,0.002]
[1754275872926,4.308,3561.3,3561.2,0.4793]
[1754275873218,4.7389,3561.3,3561.2,0.002]
[1754275874009,4.7389,3561.3,3561.2,0.4793]
[1754275876628,4.7399,3561.3,3561.2,0.4793]
[1754275878499,4.7379,3561.3,3561.2,0.4793]
[1754275878929,0.14,3561.4,3561.2,0.9272]
[1754275879121,4.307,3561.3,3561.2,0.4793]
[1754275879322,4.308,3561.3,3561.2,0.4793]
[1754275879713,4.308,3561.3,3561.2,0.9272]
[1754275881231,4.308,3561.3,3561.2,0.4793]
[1754275881605,4.7529,3561.3,3561.2,0.002]
[1754275882040,5.2004,3561.3,3561.2,0.002]
[1754275882931,4.7529,3561.3,3561.2,0.002]
[1754275883861,0.14,3561.4,3561.2,0.9272]
[1754275884061,4.306,3561.3,3561.2,0.002]
[1754275884264,4.305,3561.3,3561.2,0.002]
[1754275884567,4.305,3561.3,3561.2,0.9272]
[1754275885163,4.305,3561.3,3561.2,3.73524223]
[1754275886065,4.305,3561.3,3561.2,0.9272]
[1754275886461,0.141,3561.6,3561.2,0.9272]
[1754275886761,4.304,3561.5,3561.3,0.9252]
[1754275887070,0.001,3561.6,3561.4,0.4479]
[1754275887250,4.304,3561.5,3561.4,0.4773]
[1754275887953,4.303,3561.5,3561.4,0.9252]
[1754275888964,4.303,3561.5,3561.4,3.73308453]
[1754275889170,4.302,3561.5,3561.4,3.73308453]
[1754275889351,4.302,3561.5,3561.4,0.9252]
[1754275889734,0.001,3561.6,3561.4,0.9252]
[1754275890033,4.302,3561.5,3561.2,2.95081321]
[1754275890434,4.301,3561.4,3561.2,2.95081321]
[1754275890635,4.301,3561.4,3561.3,0.9286]
[1754275892063,4.301,3561.4,3561.3,3.73656338]
[1754275892696,4.301,3561.4,3561.3,0.9286]
[1754275893285,4.301,3561.4,3561.3,3.73656338]
[1754275893786,4.301,3561.4,3561.3,0.9286]
[1754275894586,4.301,3561.4,3561.3,3.73656338]
[1754275896874,0.001,3561.6,3561.5,2.80780569]
[1754275897281,0.001,3561.6,3561.5,7.28640569]
[1754275897454,0.001,3561.6,3561.5,7.42640569]
[1754275898479,0.001,3562.0,3561.9,6.35749038]
[1754275898680,0.001,3562.0,3561.9,6.49749038]
[1754275898985,0.001,3562.0,3561.9,7.42609038]
[1754275902387,0.001,3562.0,3561.9,7.53857638]
[1754275910025,0.001,3562.0,3561.9,7.39857638]
[1754275912026,1e-08,3562.2,3562.1,3.35733275]
[1754275912224,1e-08,3562.4,3562.3,3.35717513]
[1754275912518,1e-08,3562.4,3562.3,10.65517513]
[1754275912721,1e-08,3562.4,3562.3,10.76764613]
[1754275912927,1e-08,3562.4,3562.3,11.69624613]
[1754275913614,0.001,3562.7,3562.3,11.69624613]
[1754275913615,1e-08,3562.7,3562.6,3.35693875]
[1754275913815,0.01988977,3565.4,3564.8,2.80520646]
[1754275914016,0.01988977,3565.4,3565.3,5.80481305]
[1754275914646,0.01988977,3565.4,3565.3,6.73341305]
[1754275914852,0.01988977,3565.4,3565.3,11.05041305]
[1754275915160,0.01988977,3565.4,3565.3,6.73341305]
[1754275915318,22.04072731,3567.9,3565.3,6.73341305]
[1754275915319,0.4967,3566.8,3565.3,2.57121614]
[1754275915517,19.23789246,3568.0,3565.3,2.57121614]
[1754275915518,0.4967,3566.7,3565.4,4.379]
[1754275916018,0.4967,3566.7,3566.0,2.80425606]
[1754275916019,0.3352,3566.6,3566.0,2.80425606]
[1754275916218,0.3352,3566.6,3566.1,2.80417102]
[1754275916412,0.4967,3566.5,3565.4,0.4957]
[1754275916613,0.4967,3566.5,3566.1,2.80414159]
[1754275916614,0.3352,3566.4,3566.1,2.80414159]
[1754275916820,0.4967,3566.3,3565.5,0.9286]
[1754275917443,0.4967,3566.3,3566.1,2.80410811]
[1754275917645,0.4967,3566.3,3566.0,2.80424692]
[1754275917831,0.4967,3566.2,3565.8,2.80435698]
[1754275918017,0.4967,3566.1,3565.7,2.80446752]
[1754275918221,0.8319,3566.0,3565.3,0.20717742]
[1754275918421,0.8319,3566.0,3565.1,2.80495454]
[1754275918623,0.8319,3565.9,3564.6,2.80536385]
[1754275918817,0.988,3567.0,3564.7,2.80521205]
[1754275918818,0.8319,3565.8,3564.7,2.80521205]
[1754275919023,0.3352,3565.7,3564.7,2.80521205]
[1754275919261,0.3352,3565.7,3564.5,0.20759153]
[1754275919262,0.4968,3565.7,3564.8,3.0]
[1754275919417,0.4968,3565.7,3564.5,0.20759153]
[1754275919418,0.4968,3566.0,3565.6,2.80454752]
[1754275919919,0.4968,3566.0,3565.8,0.14]
[1754275920323,0.14,3566.3,3565.8,0.14]
[1754275920721,0.4968,3566.2,3565.8,0.14]
[1754275920951,0.4968,3566.1,3565.8,0.14]
[1754275921176,0.62572,3566.3,3565.8,2.94441893]
[1754275921352,0.62572,3566.3,3565.8,0.14]
[1754275921554,0.48572,3566.3,3565.9,2.80427473]
[1754275921768,0.48572,3566.3,3566.0,0.14]
[1754275922082,0.98252,3566.3,3566.0,0.14]
[1754275922287,0.161932,3566.2,3566.0,0.14]
[1754275922844,0.832,3566.1,3565.4,0.84288]
[1754275923039,0.3352,3566.1,3565.4,3.84288]
[1754275923269,0.4968,3566.0,3565.7,0.14]
[1754275923676,0.161932,3566.2,3565.7,0.14]
[1754275923860,0.658732,3566.2,3565.7,2.94448479]
[1754275924196,1e-08,3566.3,3566.2,6.35410521]
[1754275924482,4.14289626,3568.2,3568.1,2.80261203]
[1754275924483,3.39609626,3568.2,3568.1,2.80261203]
[1754275924646,3.39609626,3568.2,3568.1,6.73151203]
[1754275924986,3.39609626,3568.2,3568.1,7.28151203]
[1754275925155,1e-08,3568.2,3568.1,6.73151203]
[1754275925342,1e-08,3568.2,3568.1,0.842198]
[1754275925545,0.83200001,3568.2,3566.2,3.4707]
[1754275925743,0.83200001,3568.2,3566.8,2.80360275]
[1754275925744,0.832,3568.1,3566.8,2.80360275]
[1754275925959,1e-08,3568.2,3566.9,0.95693554]
[1754275926197,1e-08,3568.2,3567.1,0.55]
[1754275926430,1e-08,3568.2,3567.4,2.80314911]
[1754275926581,1e-08,3568.2,3567.3,2.80323354]
[1754275926784,1e-08,3568.2,3567.3,0.55]
[1754275927020,1e-08,3568.2,3567.6,3.0]
[1754275927243,1e-08,3568.2,3568.1,2.80261203]
[1754275927736,1e-08,3568.2,3567.9,2.80269247]
[1754275927944,1e-08,3568.2,3567.8,3.0]
[1754275928089,1e-08,3568.2,3567.2,3.4968]
[1754275928284,1e-08,3568.2,3567.6,3.0]
[1754275928621,1e-08,3568.2,3567.2,0.4968]
[1754275928622,1e-08,3568.2,3567.4,3.0]
[1754275928820,0.4968,3568.1,3567.2,0.4968]
[1754275928991,0.7296,3568.1,3567.0,4.476]
[1754275929186,0.4968,3568.0,3567.1,0.842551]
[1754275929393,5.2066,3568.0,3567.1,0.842551]
[1754275929622,5.2066,3568.0,3566.3,0.4582]
[1754275929623,1.25026,3567.9,3566.3,3.26222489]
[1754275929937,0.7296,3567.8,3566.4,0.842551]
[1754275930090,0.7296,3567.7,3566.4,0.842551]
[1754275930435,0.7296,3567.6,3566.4,0.842551]
[1754275930593,0.2328,3567.6,3566.4,3.64648415]
[1754275930789,0.4968,3567.5,3566.4,0.842551]
[1754275931306,0.4968,3567.5,3566.5,2.80379091]
[1754275932908,0.4968,3567.5,3566.4,2.8039452]
[1754275933221,0.4968,3567.5,3566.4,0.52066]
[1754275933441,0.2328,3567.4,3566.4,0.52066]
[1754275933587,0.4968,3567.3,3566.1,0.2126699]
[1754275933786,0.4968,3567.3,3566.0,0.99136]
[1754275933787,0.2328,3567.2,3566.0,0.99136]
[1754275933987,0.2328,3567.2,3566.1,0.4582]
[1754275934187,0.2328,3567.2,3566.1,3.4582]
[1754275934429,0.14,3566.9,3566.4,0.14]
[1754275934628,0.7296,3566.8,3565.8,3.0]
[1754275934783,0.6368,3566.7,3566.2,0.14]
[1754275934990,0.6368,3566.7,3565.8,0.4968]
[1754275935228,0.14,3566.7,3566.1,0.14]
[1754275935497,1e-08,3568.2,3566.6,0.14]
[1754275935823,0.14,3567.9,3566.7,0.9289]
[1754275936000,1e-08,3568.2,3566.7,0.9289]
[1754275936001,1e-08,3568.2,3567.9,0.14]
[1754275936239,1e-08,3568.2,3567.9,2.94276727]
[1754275936472,1e-08,3568.2,3568.0,3.73156341]
[1754275936634,1e-08,3568.2,3568.0,0.9289]
[1754275937843,1e-08,3568.2,3568.1,0.9289]
[1754275938162,1e-08,3568.2,3568.1,1.0689]
[1754275938744,1e-08,3568.2,3568.1,3.87151203]
[1754275938939,1e-08,3568.2,3568.1,1.0689]
[1754275939145,1e-08,3568.2,3568.1,3.87151203]
[1754275939950,1e-08,3568.2,3568.1,3.73151203]
[1754275940175,1e-08,3568.2,3568.1,3.87151203]